bitfinex/quotes_SOLUSD_20241105
["timestamp","ask_amount","ask_price","bid_price","bid_amount"]
[1730844118380,13.94803334,166.08,166.03,13.94803334]
[1730844119400,13.94803334,166.09,166.03,13.94803334]
[1730844119582,13.94803334,166.09,166.04,20.0]
[1730844119784,13.94803334,166.09,166.04,13.94803334]
[1730844121205,13.94803334,166.09,166.03,33.94803334]
[1730844122507,28.3131,166.13,166.05,13.94803334]
[1730844122508,13.94803334,166.11,166.05,13.94803334]
[1730844122806,13.94803334,166.1,166.04,13.94803334]
[1730844123590,13.94803334,166.05,165.98,21.0865]
[1730844123780,13.94803334,166.04,165.98,35.03453334]
[1730844124187,13.94803334,166.04,165.98,29.00983334]
[1730844124903,13.94803334,166.04,165.99,20.0]
[1730844125091,13.94803334,166.05,165.99,33.94803334]
[1730844125289,13.94803334,166.03,165.97,29.67483334]
[1730844125613,13.94803334,166.02,165.96,13.94803334]
[1730844126202,13.94803334,166.03,165.97,13.94803334]
[1730844126693,28.3157,166.06,165.95,6.1257]
[1730844127007,13.94803334,166.03,165.98,20.0]
[1730844128696,7.89003334,166.03,165.98,20.0]
[1730844129910,1.83203334,166.03,165.98,20.0]
[1730844130610,28.3157,166.06,165.95,13.94803334]
[1730844130611,13.94803334,166.01,165.95,13.94803334]
[1730844130793,6.0227,166.04,165.94,29.01343334]
[1730844130794,13.94803334,166.0,165.94,29.01343334]
[1730844131836,13.94803334,166.0,165.95,20.0]
[1730844132012,22.2935,166.06,165.94,20.0]
[1730844132013,13.94803334,165.99,165.94,20.0]
[1730844132217,0.1,166.05,165.94,33.94803334]
[1730844132218,13.94803334,166.0,165.94,33.94803334]
[1730844132801,13.94803334,166.0,165.94,20.0]
[1730844133021,13.94803334,165.99,165.94,20.0]
[1730844133189,13.94803334,165.99,165.93,13.94803334]
[1730844133609,13.94803334,165.99,165.92,20.0]
[1730844133610,29.74063334,165.99,165.92,20.0]
[1730844133804,29.74063334,165.99,165.94,20.0]
[1730844135711,29.74063334,165.99,165.92,33.94803334]
[1730844136719,29.74063334,165.99,165.9,15.069]
[1730844136720,13.94803334,165.97,165.91,33.94803334]
[1730844137021,21.8305,165.99,165.91,33.94803334]
[1730844137022,29.74063334,165.99,165.94,20.0]
[1730844137615,13.94803334,165.98,165.93,20.0]
[1730844137916,13.94803334,165.98,165.89,13.94803334]
[1730844137917,13.94803334,165.95,165.89,13.94803334]
[1730844138120,13.94803334,165.94,165.88,13.94803334]
[1730844138423,6.0248,165.98,165.89,13.94803334]
[1730844138424,13.94803334,165.95,165.89,13.94803334]
[1730844139009,13.94803334,165.93,165.86,15.3789285]
[1730844139199,13.94803334,165.93,165.87,13.94803334]
[1730844140098,13.94803334,165.93,165.88,20.0]
[1730844140313,13.94803334,165.93,165.86,15.3789285]
[1730844140314,16.5097,165.92,165.86,0.3063285]
[1730844140518,13.94803334,165.88,165.86,0.3063285]
[1730844140930,13.94803334,165.89,165.86,0.3063285]
[1730844141106,13.94803334,165.9,165.86,0.3063285]
[1730844141421,13.94803334,165.89,165.86,0.3063285]
[1730844141999,13.94803334,165.88,165.86,0.3063285]
[1730844142315,13.94803334,165.87,165.86,0.3063285]
[1730844144930,13.94803334,165.89,165.86,0.3063285]
[1730844145115,13.94803334,165.88,165.86,0.3063285]
[1730844145627,13.94803334,165.91,165.86,0.3063285]
[1730844145831,13.94803334,165.9,165.86,0.3063285]
[1730844147002,13.94803334,165.89,165.86,0.3063285]
[1730844148834,13.94803334,165.91,165.86,14.25436184]
[1730844149214,13.94803334,165.91,165.86,0.3063285]
[1730844149611,13.94803334,165.9,165.86,0.3063285]
[1730844150624,13.94803334,165.91,165.86,0.3063285]
[1730844150828,12.52039556,165.96,165.87,13.94803334]
[1730844150829,13.94803334,165.93,165.87,13.94803334]
[1730844152811,13.94803334,165.92,165.87,13.94803334]
[1730844153005,13.94803334,165.91,165.86,20.3063285]
[1730844153227,13.94803334,165.92,165.86,34.25436184]
[1730844154313,13.94803334,165.93,165.87,13.94803334]
[1730844154823,13.94803334,165.94,165.88,13.94803334]
[1730844156111,30.45773334,165.96,165.9,13.94803334]
[1730844157627,13.94803334,165.98,165.92,13.94803334]
[1730844158411,13.94803334,165.97,165.91,13.94803334]
[1730844160136,13.94803334,165.96,165.9,13.94803334]
[1730844160627,13.94803334,165.95,165.89,13.94803334]
[1730844161936,19.97363334,165.96,165.9,13.94803334]
[1730844164237,13.94803334,165.95,165.89,13.94803334]
[1730844165748,13.94803334,165.96,165.9,13.94803334]
[1730844166322,13.94803334,165.96,165.89,13.94803334]
[1730844166323,13.94803334,165.95,165.89,13.94803334]
[1730844166917,13.94803334,165.94,165.88,13.94803334]
[1730844167145,13.94803334,165.94,165.89,20.0]
[1730844167317,8.93986561,165.94,165.89,20.0]
[1730844168841,8.93986561,165.93,165.88,20.0]
[1730844171243,14.96666561,165.93,165.87,8.93986561]
[1730844171422,8.93986561,165.91,165.86,0.3063285]
[1730844172729,8.93986561,165.92,165.86,9.24619411]
[1730844173643,8.93986561,165.91,165.86,0.3063285]
[1730844176457,8.93986561,165.89,165.86,0.3063285]
[1730844176940,8.93986561,165.9,165.86,0.3063285]
[1730844179031,8.93986561,165.89,165.86,0.3063285]
[1730844179550,8.93986561,165.9,165.86,0.3063285]
[1730844180135,14.96796561,165.89,165.86,0.3063285]
[1730844180456,8.93986561,165.87,165.86,0.3063285]
[1730844183134,15.8869,165.89,165.86,0.3063285]
[1730844183360,8.93986561,165.89,165.86,0.3063285]
[1730844183553,8.93986561,165.88,165.86,0.3063285]
[1730844183845,8.93986561,165.87,165.86,0.3063285]
[1730844185834,14.96816561,165.89,165.86,0.3063285]
[1730844186868,8.93986561,165.88,165.86,0.3063285]
[1730844187257,31.55133561,165.87,165.86,0.3063285]
[1730844187465,0.25098,165.85,165.75,1.04987084]
[1730844187756,8.93986561,165.84,165.77,9.24619411]
[1730844188052,8.93986561,165.86,165.8,8.93986561]
[1730844190732,8.93986561,165.89,165.83,8.93986561]
[1730844192135,8.93986561,165.88,165.83,8.93986561]
[1730844192738,24.98356561,165.91,165.85,8.93986561]
[1730844193847,8.93986561,165.87,165.81,20.0]
[1730844194162,8.93986561,165.86,165.81,28.93986561]
[1730844194359,8.93986561,165.87,165.81,28.93986561]
[1730844194743,8.93986561,165.87,165.8,20.0]
[1730844194948,8.93986561,165.86,165.8,28.93986561]
[1730844195143,8.93986561,165.85,165.8,8.93986561]
[1730844195349,8.93986561,165.83,165.77,0.3063285]
[1730844195559,8.93986561,165.8,165.77,0.3063285]
[1730844196035,8.93986561,165.81,165.77,0.3063285]
[1730844198570,16.2006,165.85,165.79,8.93986561]
[1730844198770,8.93986561,165.86,165.8,8.93986561]
[1730844198961,21.1121,165.89,165.81,8.93986561]
[1730844199149,8.93986561,165.87,165.81,8.93986561]
[1730844200449,8.93986561,165.88,165.82,8.93986561]
[1730844200666,8.93986561,165.9,165.84,8.93986561]
[1730844202455,8.93986561,165.89,165.83,8.93986561]
[1730844204054,8.93986561,165.88,165.83,8.93986561]
[1730844204253,8.93986561,165.89,165.83,8.93986561]
[1730844204659,8.93986561,165.89,165.84,8.93986561]
[1730844205155,8.93986561,165.89,165.82,20.0]
[1730844205360,8.93986561,165.88,165.82,20.0]
[1730844205547,8.93986561,165.89,165.83,8.93986561]
[1730844207047,8.93986561,165.88,165.83,8.93986561]
[1730844208169,8.93986561,165.89,165.83,8.93986561]
[1730844209453,8.93986561,165.89,165.84,8.93986561]
[1730844209659,8.93986561,165.89,165.83,8.93986561]
[1730844210278,8.93986561,165.89,165.84,8.93986561]
[1730844210660,8.93986561,165.89,165.83,8.93986561]
[1730844210860,0.12549,165.92,165.85,8.93986561]
[1730844211178,8.93986561,165.91,165.85,8.93986561]
[1730844211775,21.1106,165.93,165.87,8.93986561]
[1730844211776,30.05046561,165.93,165.87,8.93986561]
[1730844212160,8.93986561,165.92,165.86,8.93986561]
[1730844212362,8.93986561,165.91,165.86,8.93986561]
[1730844214274,8.93986561,165.92,165.86,8.93986561]
[1730844214781,6.30540681,165.94,165.86,8.93986561]
[1730844214782,6.30540681,165.94,165.92,20.0]
[1730844214966,14.96376561,166.01,165.93,8.93986561]
[1730844215286,14.96376561,166.01,165.92,20.0]
[1730844215287,14.96376561,166.01,165.95,8.93986561]
[1730844215489,8.93986561,166.0,165.94,8.93986561]
[1730844216370,6.0239,166.01,165.96,8.93986561]
[1730844216668,14.96376561,166.01,165.95,8.93986561]
[1730844217090,8.93986561,166.0,165.94,15.4542]
[1730844217390,8.93986561,166.0,165.94,24.39406561]
[1730844217567,8.93986561,165.98,165.92,8.93986561]
[1730844219891,8.93986561,165.97,165.91,8.93986561]
[1730844221399,8.93986561,165.98,165.92,8.93986561]
[1730844226980,8.93986561,165.98,165.93,8.93986561]
[1730844227591,8.93986561,165.99,165.93,8.93986561]
[1730844227795,8.93986561,165.98,165.93,8.93986561]
[1730844228300,8.93986561,165.99,165.93,8.93986561]
[1730844228800,8.93986561,165.98,165.93,8.93986561]
[1730844228972,8.93986561,165.98,165.9,15.739]
[1730844228973,8.93986561,165.96,165.9,15.739]
[1730844229183,8.93986561,165.95,165.89,15.46606561]
[1730844229386,8.93986561,165.95,165.89,8.93986561]
[1730844230085,8.93986561,165.94,165.89,8.93986561]
[1730844231584,8.93986561,165.94,165.86,36.8405]
[1730844231585,8.93986561,165.91,165.86,15.739]
[1730844231878,8.93986561,165.91,165.86,20.0]
[1730844232278,8.93986561,165.9,165.86,20.0]
[1730844233303,22.7456,165.98,165.89,8.93986561]
[1730844233475,6.0251,165.97,165.91,8.93986561]
[1730844233678,16.1476,165.98,165.92,8.93986561]
[1730844233900,25.08746561,165.98,165.92,8.93986561]
[1730844235001,8.93986561,165.97,165.92,8.93986561]
[1730844235604,8.93986561,165.97,165.9,8.93986561]
[1730844235605,8.93986561,165.96,165.9,8.93986561]
[1730844238208,14.96496561,165.97,165.91,8.93986561]
[1730844238508,8.93986561,165.96,165.9,8.93986561]
[1730844240305,6.0252,165.97,165.88,16.65]
[1730844240475,8.93986561,165.93,165.88,16.65]
[1730844240899,8.93986561,165.94,165.88,25.58986561]
[1730844241404,6.0252,165.97,165.9,8.93986561]
[1730844241606,8.93986561,165.96,165.9,8.93986561]
[1730844242505,8.93986561,165.95,165.89,8.93986561]
[1730844244704,8.93986561,165.93,165.88,16.65]
[1730844244999,8.93986561,165.93,165.88,20.0]
[1730844245591,8.93986561,165.94,165.88,8.93986561]
[1730844246680,8.93986561,165.93,165.87,8.93986561]
[1730844247096,8.93986561,165.93,165.88,20.0]
[1730844247706,8.93986561,165.93,165.87,8.93986561]
[1730844248005,6.0262,165.95,165.85,6.6603]
[1730844248006,8.93986561,165.9,165.85,6.6603]
[1730844248814,8.93986561,165.91,165.85,15.60016561]
[1730844248995,8.93986561,165.92,165.86,8.93986561]
[1730844251405,8.93986561,165.93,165.87,8.93986561]
[1730844252410,8.93986561,165.91,165.86,20.0]
[1730844253311,8.93986561,165.91,165.85,20.0]
[1730844253522,8.93986561,165.91,165.85,28.93986561]
[1730844254323,8.93986561,165.9,165.85,20.0]
[1730844254906,8.93986561,165.91,165.85,28.93986561]
[1730844256012,8.93986561,165.9,165.85,20.0]
[1730844256388,8.93986561,165.89,165.84,16.1889]
[1730844256810,8.93986561,165.9,165.84,25.12876561]
[1730844260417,8.93986561,165.89,165.84,20.0]
[1730844260916,8.93986561,165.88,165.84,20.0]
[1730844261595,51.98956244,165.92,165.84,20.0]
[1730844261596,8.93986561,165.89,165.84,20.0]
[1730844262009,8.93986561,165.88,165.82,28.93986561]
[1730844262193,8.93986561,165.87,165.82,28.93986561]
[1730844262394,8.93986561,165.87,165.82,20.0]
[1730844262919,8.93986561,165.87,165.82,28.93986561]
[1730844263697,8.93986561,165.88,165.82,28.93986561]
[1730844263897,8.93986561,165.94,165.87,8.93986561]
[1730844264206,22.4499,165.96,165.9,8.93986561]
[1730844264207,8.93986561,165.95,165.9,8.93986561]
[1730844265532,8.93986561,165.97,165.92,8.93986561]
[1730844265901,8.93986561,165.96,165.91,8.93986561]
[1730844266625,8.93986561,165.97,165.91,8.93986561]
[1730844266922,8.93986561,165.98,165.92,8.93986561]
[1730844267302,8.93986561,165.97,165.92,8.93986561]
[1730844268224,8.93986561,165.98,165.92,8.93986561]
[1730844268732,8.93986561,165.97,165.92,8.93986561]
[1730844269222,8.93986561,165.96,165.9,8.93986561]
[1730844270098,8.93986561,165.97,165.91,8.93986561]
[1730844270809,14.96496561,165.98,165.92,8.93986561]
[1730844271807,0.1,166.05,165.92,8.93986561]
[1730844271808,8.93986561,166.03,165.97,8.93986561]
[1730844274713,8.93986561,166.02,165.96,8.93986561]
[1730844276532,8.93986561,166.01,165.95,8.93986561]
[1730844277132,8.93986561,166.02,165.96,8.93986561]
[1730844278232,8.93986561,166.01,165.95,28.93986561]
[1730844279227,8.93986561,166.0,165.94,15.00356561]
[1730844280129,8.93986561,165.99,165.94,20.0]
[1730844280632,8.93986561,165.99,165.93,8.93986561]
[1730844283521,0.37647,166.05,165.94,8.93986561]
[1730844283713,8.93986561,166.01,165.95,8.93986561]
[1730844284815,6.0233,166.02,165.96,8.93986561]
[1730844285134,8.93986561,166.01,165.95,8.93986561]
[1730844286537,8.93986561,166.0,165.94,8.93986561]
[1730844287408,8.93986561,165.99,165.93,8.93986561]
[1730844287610,8.93986561,165.98,165.93,20.0]
[1730844287827,8.93986561,165.98,165.92,25.27886561]
[1730844289125,8.93986561,165.97,165.9,21.2594]
[1730844289325,8.93986561,165.96,165.91,28.93986561]
[1730844289835,8.93986561,165.97,165.91,28.93986561]
[1730844291358,0.3063285,166.06,165.96,24.92276561]
[1730844291528,8.93986561,166.04,165.98,8.93986561]
[1730844292026,8.93986561,166.03,165.97,8.93986561]
[1730844293449,6.0224,166.05,165.97,8.93986561]
[1730844293650,8.93986561,166.03,165.97,8.93986561]
[1730844294751,6.0224,166.05,165.97,8.93986561]
[1730844294949,6.0224,166.05,165.98,8.93986561]
[1730844295143,8.93986561,166.04,165.98,8.93986561]
[1730844296040,0.3063285,166.06,166.01,8.93986561]
[1730844296425,9.24619411,166.06,166.0,8.93986561]
[1730844301846,8.93986561,166.05,166.0,8.93986561]
[1730844302051,8.93986561,166.01,165.96,22.059]
[1730844302641,8.93986561,166.02,165.96,30.99886561]
[1730844303150,8.93986561,165.98,165.92,31.72586561]
[1730844303352,8.93986561,165.98,165.93,8.93986561]
[1730844303555,8.93986561,165.99,165.93,8.93986561]
[1730844303942,8.93986561,165.97,165.92,16.2402]
[1730844304138,8.93986561,165.96,165.9,8.93986561]
[1730844304629,8.93986561,165.95,165.88,22.7719]
[1730844304832,8.93986561,165.93,165.88,31.71176561]
[1730844305036,0.12549,165.97,165.89,8.93986561]
[1730844305262,8.93986561,165.96,165.91,8.93986561]
[1730844305960,8.93986561,165.96,165.9,8.93986561]
[1730844307844,8.93986561,165.95,165.89,28.93986561]
[1730844308270,8.93986561,165.95,165.9,8.93986561]
[1730844308454,8.93986561,165.96,165.9,8.93986561]
[1730844311458,0.45098,166.03,165.93,8.93986561]
[1730844311459,6.023,166.03,165.93,8.93986561]
[1730844311652,8.93986561,166.0,165.94,8.93986561]
[1730844311856,8.93986561,166.0,165.95,8.93986561]
[1730844313556,8.93986561,166.0,165.94,8.93986561]
[1730844315849,8.93986561,165.99,165.93,8.93986561]
[1730844316736,8.93986561,166.01,165.95,8.93986561]
[1730844317148,8.93986561,166.0,165.94,8.93986561]
[1730844318040,8.93986561,165.99,165.92,43.776884]
[1730844318264,8.93986561,165.99,165.94,20.0]
[1730844319446,8.93986561,166.0,165.94,20.0]
[1730844321573,8.93986561,166.0,165.94,8.93986561]
[1730844322768,8.93986561,166.01,165.95,8.93986561]
[1730844323473,6.3535,166.05,165.98,8.93986561]
[1730844323474,6.0224,166.05,165.98,8.93986561]
[1730844323763,8.93986561,166.04,165.98,8.93986561]
[1730844324675,8.93986561,166.05,165.99,8.93986561]
[1730844324980,0.3063285,166.06,166.0,8.93986561]
[1730844326164,9.24619411,166.06,166.0,8.93986561]
[1730844326678,0.3063285,166.06,166.01,8.93986561]
[1730844327651,0.3063285,166.06,166.02,32.71674961]
[1730844329759,0.3063285,166.06,166.03,8.93986561]
[1730844329961,0.3063285,166.06,166.04,23.776884]
[1730844330670,0.3063285,166.06,166.04,8.93986561]
[1730844330865,0.3063285,166.06,166.05,32.71674961]
[1730844331249,0.3063285,166.06,166.05,52.71674961]
[1730844331996,0.3063285,166.06,166.05,52.96772961]
[1730844332181,0.3063285,166.06,166.05,53.09321961]
[1730844332858,0.3063285,166.06,166.05,44.153354]
[1730844333260,0.3063285,166.06,166.05,53.09321961]
[1730844334264,0.3063285,166.06,166.02,37.5146]
[1730844334472,0.3063285,166.06,166.03,8.93986561]
[1730844335066,0.3063285,166.06,166.05,8.93986561]
[1730844335261,0.3063285,166.06,166.05,9.06535561]
[1730844335569,0.3063285,166.06,166.05,52.96772961]
[1730844337673,0.3063285,166.06,166.05,53.09321961]
[1730844342971,0.3063285,166.06,166.05,43.776884]
[1730844343673,0.3063285,166.06,166.05,52.71674961]
[1730844344389,0.3063285,166.06,166.05,52.96772961]
[1730844345471,0.3063285,166.06,166.05,58.98992961]
[1730844347778,0.3063285,166.06,166.05,59.11541961]
[1730844349170,0.3063285,166.06,166.05,219.11541961]
[1730844361107,0.3063285,166.06,166.05,59.11541961]
[1730844366007,0.3063285,166.06,166.05,59.21541961]
[1730844367100,0.3063285,166.06,166.05,219.21541961]
[1730844369795,0.3063285,166.06,166.05,210.275554]
[1730844369990,0.3063285,166.06,166.05,219.21541961]
[1730844372099,0.3063285,166.15,166.05,219.21541961]
[1730844372100,0.3063285,166.15,166.08,0.12549]
[1730844372420,0.3063285,166.15,166.13,23.776884]
[1730844375500,0.3063285,166.15,166.14,53.09321961]
[1730844375704,0.3063285,166.15,166.14,59.11221961]
[1730844375892,0.3063285,166.15,166.14,53.09321961]
[1730844376903,0.3063285,166.15,166.14,52.71674961]
[1730844377106,0.3063285,166.15,166.14,43.776884]
[1730844378123,0.3063285,166.15,166.08,42.45936244]
[1730844378124,9.24619411,166.15,166.07,6.0212]
[1730844378301,9.24619411,166.15,166.09,8.93986561]
[1730844378506,8.93986561,166.14,166.09,8.93986561]
[1730844378709,9.24619411,166.15,166.1,8.93986561]
[1730844378908,9.24619411,166.15,166.09,8.93986561]
[1730844379204,0.3063285,166.15,166.11,20.0]
[1730844380116,9.24619411,166.15,166.11,20.0]
[1730844380527,9.24619411,166.15,166.09,8.93986561]
[1730844380717,9.24619411,166.15,166.1,20.0]
[1730844381223,0.3063285,166.15,166.1,20.0]
[1730844381399,9.24619411,166.15,166.1,20.0]
[1730844386913,8.93986561,166.12,166.09,23.776884]
[1730844387118,8.93986561,166.11,166.08,20.0]
[1730844387420,16.4119,166.14,166.08,20.0]
[1730844387421,8.93986561,166.12,166.08,20.0]
[1730844387723,8.93986561,166.12,166.06,28.93986561]
[1730844387902,8.93986561,166.12,166.08,20.0]
[1730844388310,8.93986561,166.13,166.08,20.0]
[1730844388703,8.93986561,166.12,166.08,20.0]
[1730844389103,8.93986561,166.13,166.08,20.0]
[1730844389823,8.93986561,166.12,166.08,20.0]
[1730844390419,4.48025974,166.11,166.08,20.0]
[1730844390722,8.93986561,166.12,166.08,20.0]
[1730844390919,4.48028249,166.11,166.08,20.0]
[1730844391117,8.93986561,166.12,166.08,20.0]
[1730844391428,4.48040963,166.11,166.08,20.0]
[1730844391631,8.93986561,166.12,166.08,20.0]
[1730844391926,4.48067123,166.11,166.08,20.0]
[1730844392123,8.93986561,166.12,166.08,20.0]
[1730844392326,4.48059034,166.11,166.08,20.0]
[1730844392499,4.48059034,166.1,166.08,20.0]
[1730844392700,8.93986561,166.12,166.08,20.0]
[1730844392905,11.64945961,166.11,166.08,20.0]
[1730844393118,4.48063772,166.1,166.08,20.0]
[1730844393314,8.93986561,166.12,166.08,20.0]
[1730844393610,11.64616698,166.11,166.08,20.0]
[1730844393935,4.47929499,166.1,166.08,20.0]
[1730844394230,8.93986561,166.11,166.08,20.0]
[1730844394410,4.47950137,166.1,166.08,20.0]
[1730844394611,4.4791305,166.09,166.08,20.0]
[1730844396325,11.64889174,166.09,166.08,20.0]
[1730844396629,4.4791305,166.09,166.08,20.0]
[1730844396933,4.48180807,166.09,166.08,20.0]
[1730844397321,11.65308332,166.09,166.08,20.0]
[1730844398528,20.59294893,166.09,166.02,160.0]
[1730844398714,8.93986561,166.06,166.02,160.0]
[1730844398912,4.48180807,166.05,166.02,160.0]
[1730844399114,8.93986561,166.07,166.02,168.93986561]
[1730844399424,4.48109615,166.06,166.02,168.93986561]
[1730844399626,4.48109615,166.05,166.02,168.93986561]
[1730844399830,8.93986561,166.07,166.02,160.0]
[1730844400136,4.48028152,166.06,166.02,160.0]
[1730844400315,4.48028152,166.05,166.04,20.0]
[1730844403232,4.48028152,166.05,166.03,20.0]
[1730844403435,8.93986561,166.07,166.03,20.0]
[1730844403738,13.41718862,166.06,166.03,20.0]
[1730844403937,4.47732301,166.05,166.03,20.0]
[1730844404135,8.93986561,166.06,166.03,20.0]
[1730844404440,8.93986561,166.06,166.02,160.0]
[1730844404622,4.47637015,166.05,166.02,160.0]
[1730844404827,8.93986561,166.06,166.02,160.0]
[1730844405023,4.4764959,166.05,166.02,160.0]
[1730844405343,8.93986561,166.06,166.0,9.06535561]
[1730844405539,4.47567887,166.05,166.01,23.776884]
[1730844405838,8.93986561,166.06,166.02,20.0]
[1730844406049,4.4757106,166.05,166.02,20.0]
[1730844406336,8.93986561,166.06,166.02,20.0]
[1730844406533,4.47505022,166.05,166.02,20.0]
[1730844406724,8.93986561,166.07,166.02,20.0]
[1730844406925,4.47495932,166.06,166.02,20.0]
[1730844407119,4.47495932,166.05,166.02,20.0]
[1730844407334,8.93986561,166.07,166.02,20.0]
[1730844407523,4.47410347,166.06,166.02,20.0]
[1730844407834,4.47410347,166.05,166.02,20.0]
[1730844408139,8.93986561,166.07,166.02,20.0]
[1730844408443,4.474003,166.06,166.02,20.0]
[1730844408632,4.474003,166.05,166.02,20.0]
[1730844408942,8.93986561,166.07,166.02,20.0]
[1730844409120,13.41178516,166.06,166.02,20.0]
[1730844409324,4.47191955,166.05,166.02,20.0]
[1730844409518,8.93986561,166.06,166.02,20.0]
[1730844409731,4.47024711,166.05,166.02,20.0]
[1730844409929,8.93986561,166.06,166.02,20.0]
[1730844410237,8.93986561,166.04,165.98,1.04766731]
[1730844410534,8.93986561,166.05,165.99,8.93986561]
[1730844410840,8.93986561,166.06,166.0,8.93986561]
[1730844411026,4.46769277,166.05,166.0,8.93986561]
[1730844411340,4.46769277,166.04,166.0,8.93986561]
[1730844411511,8.93986561,166.05,165.99,52.96772961]
[1730844411716,4.4658028,166.04,165.99,52.96772961]
[1730844411940,8.93986561,166.05,165.99,52.96772961]
[1730844412146,4.46579393,166.04,165.99,52.96772961]
[1730844412337,8.93986561,166.05,165.99,52.96772961]
[1730844412521,4.464529,166.04,165.99,52.96772961]
[1730844412724,8.93986561,166.05,165.99,52.96772961]
[1730844412924,4.46456244,166.04,165.99,52.96772961]
[1730844413123,8.93986561,166.05,165.99,52.96772961]
[1730844413328,4.46323838,166.04,165.99,52.96772961]
[1730844413526,8.93986561,166.05,165.99,52.96772961]
[1730844413738,4.46319527,166.04,165.99,52.96772961]
[1730844414035,24.28676561,166.08,166.03,20.0]
[1730844414236,8.93986561,166.07,166.03,20.0]
[1730844414444,8.93986561,166.06,166.01,23.776884]
[1730844414748,13.40306214,166.05,166.01,20.0]
[1730844415245,4.46319653,166.04,166.01,20.0]
[1730844415425,8.93986561,166.05,166.01,20.0]
[1730844416155,8.93986561,166.02,165.95,15.0646]
[1730844416326,8.93986561,165.99,165.95,15.0646]
[1730844417333,8.93986561,165.99,165.96,43.776884]
[1730844417643,8.93986561,165.97,165.91,6.0271]
[1730844417849,8.93986561,165.97,165.92,0.12549]
[1730844418520,8.93986561,165.98,165.92,0.12549]
[1730844418744,8.93986561,165.98,165.92,23.902374]
[1730844419049,8.93986561,165.97,165.92,23.902374]
[1730844419576,8.93986561,165.97,165.93,20.0]
[1730844420048,8.93986561,165.96,165.93,20.0]
[1730844420428,8.93986561,165.95,165.89,23.95306561]
[1730844421748,8.93986561,165.95,165.9,20.0]
[1730844422864,8.93986561,165.97,165.92,20.0]
[1730844426152,8.93986561,165.96,165.91,23.776884]
[1730844426333,41.78376244,166.0,165.92,20.0]
[1730844426334,8.93986561,165.97,165.92,20.0]
[1730844427046,8.93986561,165.98,165.93,8.93986561]
[1730844427256,8.93986561,165.99,165.93,8.93986561]
[1730844427627,8.93986561,165.98,165.93,23.776884]
[1730844428250,8.93986561,165.97,165.93,23.776884]
[1730844428945,8.93986561,165.98,165.93,23.776884]
[1730844429252,8.93986561,165.97,165.93,23.776884]
[1730844430154,8.93986561,165.96,165.93,23.776884]
[1730844430536,41.78386244,166.0,165.92,23.776884]
[1730844430537,8.93986561,165.95,165.92,23.776884]
[1730844430744,8.93986561,165.95,165.93,20.0]
[1730844431446,8.93986561,165.95,165.91,23.902374]
[1730844431636,8.93986561,165.95,165.92,20.0]
[1730844434062,8.93986561,165.96,165.92,20.0]
[1730844434862,8.93986561,165.93,165.86,166.7928285]
[1730844435043,8.93986561,165.93,165.87,28.93986561]
[1730844435359,8.93986561,165.92,165.87,20.0]
[1730844436147,8.93986561,165.93,165.89,20.0]
[1730844436540,8.93986561,165.94,165.89,20.0]
[1730844438341,8.93986561,165.93,165.89,20.0]
[1730844439837,6.0259,165.95,165.87,20.0]
[1730844440038,8.93986561,165.94,165.89,20.0]
[1730844440545,8.93986561,165.93,165.89,20.0]
[1730844442145,8.93986561,165.94,165.89,20.0]
[1730844444273,8.93986561,165.93,165.89,20.0]
[1730844444659,8.93986561,165.94,165.89,28.93986561]
[1730844445756,8.93986561,165.92,165.87,20.0]
[1730844446257,8.93986561,165.93,165.88,20.0]
[1730844446471,8.93986561,165.94,165.88,28.93986561]
[1730844446641,8.93986561,165.89,165.86,0.3063285]
[1730844446846,8.93986561,165.88,165.86,0.3063285]
[1730844447260,8.93986561,165.89,165.86,0.3063285]
[1730844449751,8.93986561,165.88,165.86,0.3063285]
[1730844449949,9.06535561,165.87,165.86,0.3063285]
[1730844450750,9.06535561,165.87,165.77,16.2248285]
[1730844450751,51.34301805,165.87,165.77,0.3063285]
[1730844450955,8.93986561,165.79,165.77,0.3063285]
[1730844452096,8.93986561,165.78,165.77,0.3063285]
[1730844457292,8.93986561,165.79,165.77,0.3063285]
[1730844458061,8.93986561,165.78,165.77,0.3063285]
[1730844458279,24.59956561,165.78,165.77,0.3063285]
[1730844458872,24.72505561,165.78,165.77,0.3063285]
[1730844459278,24.85054561,165.78,165.77,0.3063285]
[1730844460165,0.22549,165.77,165.69,0.3063285]
[1730844460362,8.93986561,165.7,165.69,0.3063285]
[1730844460771,24.59956561,165.7,165.69,0.3063285]
[1730844460968,84.38689205,165.7,165.69,0.3063285]
[1730844461169,15.78519,165.7,165.69,0.3063285]
[1730844461488,24.72505561,165.7,165.69,0.3063285]